fUST/lending_fUST_20240917
["ID","MTS","AMOUNT","RATE_DAILY","PERIOD"]
[338356693,1726550948240,-250.0,0.0001453,2]
[338356694,1726550948261,-250.0,0.00014569,2]
[338356695,1726550948282,-250.0,0.00014609,2]
[338356696,1726550948303,-242.98836794,0.00014648,2]
[338356697,1726550952115,-7.01163206,0.00014648,2]
[338356698,1726550952136,-250.0,0.00014688,2]
[338356699,1726550952157,-250.0,0.00014727,2]
[338356700,1726550952177,-164.52440045,0.00014765,2]
[338356701,1726550952198,-250.0,0.00014767,2]
[338356702,1726550952219,-250.0,0.00014806,2]
[338356703,1726550952239,-2630.5513157,0.00014825,2]
[338356704,1726550952261,-250.0,0.00014845,2]
[338356705,1726550952281,-250.0,0.00014885,2]
[338356706,1726550952303,-250.0,0.00014924,2]
[338356707,1726550952326,-250.0,0.00014964,2]
[338356708,1726550952355,-250.0,0.00015003,2]
[338356709,1726550952376,-250.0,0.00015043,2]
[338356710,1726550952398,-250.0,0.00015082,2]
[338356711,1726550952418,-164.52440045,0.00015108,2]
[338356712,1726550952438,-250.0,0.00015121,2]
[338356733,1726551032304,-164.52440045,0.00015783,2]
[338356735,1726551032314,-164.52440045,0.00015784,2]
[338356737,1726551032324,-3207.14529508,0.00015784,2]
[338356743,1726551038538,-4429.81603738,0.00015784,2]
[338356744,1726551038548,-300.0,0.00015883,2]
[338356745,1726551038558,-300.0,0.00015883,2]
[338356746,1726551038567,-999.40257335,0.00015883,2]
[338356747,1726551038576,-500.0,0.00015883,2]
[338356748,1726551038585,-500.0,0.00015883,2]
[338356749,1726551038595,-500.0,0.00015883,2]
[338356750,1726551038604,-500.0,0.00015883,2]
[338356751,1726551038613,-500.0,0.00015883,2]
[338356752,1726551038623,-600.0,0.00015883,2]
[338356753,1726551038632,-500.0,0.00015883,2]
[338356754,1726551038642,-500.0,0.00015883,2]
[338356755,1726551038652,-500.0,0.00015883,2]
[338356756,1726551038661,-500.0,0.00015883,2]
[338356757,1726551038670,-500.0,0.00015883,2]
[338356758,1726551038680,-500.0,0.00015883,2]
[338356759,1726551038689,-500.0,0.00015883,2]
[338356760,1726551038699,-500.0,0.00015883,2]
[338356761,1726551038708,-500.0,0.00015883,2]
[338356762,1726551038718,-500.0,0.00015883,2]
[338356763,1726551038728,-500.0,0.00015883,2]
[338356764,1726551038738,-500.0,0.00015883,2]
[338356765,1726551038747,-500.0,0.00015883,2]
[338356766,1726551038757,-500.0,0.00015883,2]
[338356767,1726551038766,-500.0,0.00015883,2]
[338356768,1726551038775,-500.0,0.00015883,2]
[338356769,1726551038785,-500.0,0.00015883,2]
[338356770,1726551038794,-500.0,0.00015883,2]
[338356771,1726551038803,-500.0,0.00015883,2]
[338356772,1726551038812,-500.0,0.00015883,2]
[338356773,1726551038821,-500.0,0.00015883,2]
[338356774,1726551038830,-500.0,0.00015883,2]
[338356775,1726551038843,-500.0,0.00015883,2]
[338356776,1726551038852,-500.0,0.00015883,2]
[338356777,1726551038861,-500.0,0.00015883,2]
[338356778,1726551038871,-500.0,0.00015883,2]
[338356779,1726551038880,-500.0,0.00015883,2]
[338356780,1726551038894,-500.0,0.00015883,2]
[338356781,1726551038903,-500.0,0.00015883,2]
[338356782,1726551038912,-500.0,0.00015883,2]
[338356783,1726551038921,-500.0,0.00015883,2]
[338356784,1726551038930,-500.0,0.00015883,2]
[338356785,1726551038940,-500.0,0.00015883,2]
[338356786,1726551038949,-500.0,0.00015883,2]
[338356787,1726551038958,-500.0,0.00015883,2]
[338356788,1726551038967,-500.0,0.00015883,2]
[338356789,1726551038976,-355.84520405,0.00015883,2]
[338356790,1726551038985,-500.0,0.00015883,2]
[338356791,1726551038994,-500.0,0.00015883,2]
[338356792,1726551039004,-500.0,0.00015883,2]
[338356793,1726551039013,-500.0,0.00015883,2]
[338356794,1726551039022,-500.0,0.00015883,2]
[338356795,1726551039031,-500.0,0.00015883,2]
[338356796,1726551039041,-496.9986499,0.00015883,2]
[338356797,1726551039050,-500.0,0.00015883,2]
[338356798,1726551039059,-500.0,0.00015883,2]
[338356799,1726551039069,-500.0,0.00015883,2]
[338356800,1726551039078,-500.0,0.00015883,2]
[338356801,1726551039087,-500.0,0.00015883,2]
[338356802,1726551039095,-500.0,0.00015883,2]
[338356803,1726551039105,-500.0,0.00015883,2]
[338356804,1726551039114,-500.0,0.00015883,2]
[338356805,1726551039122,-500.0,0.00015883,2]
[338356806,1726551039131,-500.0,0.00015883,2]
[338356807,1726551039141,-83706.671507,0.00015885,2]
[338356808,1726551039151,-1499.28464934,0.00015885,2]
[338356809,1726551039160,-83706.671507,0.00015888,2]
[338356810,1726551039170,-1499.28464934,0.00015888,2]
[338356811,1726551039179,-7332.47559913,0.00016256,2]
[338356812,1726551039188,-500.0,0.000165,2]
[338356813,1726551039197,-500.0,0.000165,2]
[338356814,1726551039206,-500.99330819,0.000165,2]
[338356815,1726551039215,-500.0,0.000165,2]
[338356816,1726551039224,-500.0,0.000165,2]
[338356817,1726551039234,-500.48513089,0.000165,2]
[338356818,1726551039243,-501.02034635,0.000165,2]
[338356819,1726551039252,-562.43569413,0.000165,2]
[338356820,1726551039262,-7332.47559913,0.00016637,2]
[338356821,1726551039271,-1223.31895829,0.000167,2]
[338356822,1726551039280,-7332.47559913,0.00016842,2]
[338356823,1726551039290,-7332.47559913,0.00017045,2]
[338356824,1726551039299,-7636.9613324,0.00017307,2]
[338356825,1726551039309,-7332.47559913,0.00017368,2]
[338356826,1726551039318,-420.0,0.00017368,2]
[338356827,1726551039328,-420.0,0.00017472,2]
[338356828,1726551039337,-488.82668183,0.00017534,2]
[338356829,1726551039346,-500.0,0.00017534,2]
[338356830,1726551039355,-500.0,0.00017534,2]
[338356831,1726551039364,-500.0,0.00017534,2]
[338356832,1726551039373,-500.0,0.00017534,2]
[338356833,1726551039382,-500.0,0.00017534,2]
[338356834,1726551039392,-230.98972288,0.00017534,2]
[338356835,1726551039400,-500.0,0.00017534,2]
[338356836,1726551039410,-500.0,0.00017534,2]
[338356837,1726551039418,-500.0,0.00017534,2]
[338356838,1726551039427,-500.0,0.00017534,2]
[338356839,1726551039437,-500.0,0.00017534,2]
[338356840,1726551039447,-500.0,0.00017534,2]
[338356841,1726551039456,-500.0,0.00017534,2]
[338356842,1726551039466,-562.81830514,0.00017534,2]
[338356843,1726551039475,-500.0,0.00017534,2]
[338356844,1726551039486,-500.0,0.00017534,2]
[338356845,1726551039495,-500.0,0.00017534,2]
[338356846,1726551039504,-493.87853897,0.00017534,2]
[338356847,1726551039514,-500.0,0.00017534,2]
[338356848,1726551039523,-500.0,0.00017534,2]
[338356849,1726551039532,-575.62717985,0.00017534,2]
[338356850,1726551039542,-500.0,0.00017534,2]
[338356851,1726551039551,-500.0,0.00017534,2]
[338356852,1726551039560,-500.0,0.00017534,2]
[338356853,1726551039569,-500.0,0.00017534,2]
[338356854,1726551039579,-500.0,0.00017534,2]
[338356855,1726551039588,-500.0,0.00017534,2]
[338356856,1726551039597,-500.0,0.00017534,2]
[338356857,1726551039606,-500.0,0.00017534,2]
[338356858,1726551039615,-7332.47559913,0.00017535,2]
[338356859,1726551039625,-1999.51392858,0.000176,2]
[338356860,1726551039634,-7591.18162658,0.00017732,2]
[338356861,1726551039643,-83706.671507,0.00017794,2]
[338356862,1726551039652,-1499.28464934,0.00017794,2]
[338356863,1726551039662,-1000.0,0.0001787,2]
[338356864,1726551039671,-1000.0,0.0001787,2]
[338356865,1726551039680,-7332.47559913,0.00017951,2]
[338356866,1726551039690,-176.64202104,0.00018057,2]
[338356867,1726551039699,-83706.671507,0.00018057,2]
[338356868,1726551039708,-1499.28464934,0.00018057,2]
[338356869,1726551039717,-500.0,0.00018071,2]
[338356870,1726551039727,-7332.47559913,0.00018205,2]
[338356871,1726551039737,-7332.47559913,0.00018425,2]
[338356872,1726551039746,-6012.69398608,0.00018447,2]
[338356873,1726551039756,-1499.28464934,0.00018654,2]
[338356874,1726551039765,-7332.47559913,0.00018702,2]
[338356875,1726551039776,-1499.28464934,0.0001875,2]
[338356876,1726551039786,-61056.08033718,0.0001876,2]
[338356877,1726551039795,-700.76082941,0.00018795,2]
[338356878,1726551039804,-7636.9613324,0.00018831,2]
[338356879,1726551039814,-1499.28464934,0.0001885,3]
[338356880,1726551039823,-700.76082941,0.00018904,2]
[338356881,1726551039832,-700.76082941,0.00018986,2]
[338356882,1726551039845,-587.0,0.00018991,2]
[338356883,1726551039854,-5000.0,0.00019,2]
[338356884,1726551039864,-12906.91631862,0.00019,2]
[338356885,1726551039874,-1240.35538214,0.00019,2]
[338356886,1726551039885,-286.65874117,0.00019,7]
[338356887,1726551039895,-7332.47559913,0.00019036,2]
[338356888,1726551039904,-700.76082941,0.00019068,2]
[338356890,1726551039913,-700.76082941,0.00019151,2]
[338356891,1726551039924,-163.049896,0.00019178,2]
[338356892,1726551039934,-902.806745,0.00019178,2]
[338356893,1726551039944,-161.870026,0.00019178,2]
[338356894,1726551039953,-2466.23348057,0.000192,5]
[338356895,1726551039963,-59210.49,0.000192,2]
[338356896,1726551039972,-104835.81,0.000192,2]
[338356897,1726551039982,-437636.51,0.000192,2]
[338356898,1726551039992,-587.0,0.00019219,2]
[338356899,1726551040001,-700.76082941,0.0001926,2]
[338356900,1726551040011,-5000.0,0.000193,4]
[338356901,1726551040020,-1499.28464934,0.00019306,3]
[338356902,1726551040030,-34123.29535592,0.00019316,2]
[338356903,1726551040039,-187.17731012,0.00019342,2]
[338356904,1726551040049,-187.17731012,0.00019342,2]
[338356905,1726551040059,-700.76082941,0.00019342,2]
[338356907,1726551040070,-175.033086,0.00019376,2]
[338356908,1726551040079,-175.033086,0.00019376,2]
[338356910,1726551040088,-7332.47559913,0.00019414,2]
[338356912,1726551040098,-700.76082941,0.00019425,2]
[338356914,1726551040107,-1000.0,0.00019441,2]
[338356916,1726551040116,-1894.50034808,0.0001949,2]
[338356917,1726551040125,-214.0,0.000195,10]
[338356919,1726551040135,-700.76082941,0.00019534,2]
[338356920,1726551040145,-500.0,0.00019573,2]
[338356921,1726551040154,-500.0,0.00019573,2]
[338356922,1726551040163,-500.0,0.00019573,2]
[338356923,1726551040173,-1499.28464934,0.0001958,3]
[338356924,1726551040182,-4497.85394802,0.0001958,3]
[338356925,1726551040192,-187.17731012,0.00019589,2]
[338356926,1726551040201,-187.17731011,0.00019589,2]
[338356927,1726551040210,-1499.28464934,0.0001959,3]
[338356928,1726551040220,-10494.9925454,0.0001959,3]
[338356929,1726551040229,-84493.65692752,0.000196,5]
[338356930,1726551040239,-8516.42,0.000196,2]
[338356931,1726551040248,-48571.639,0.00019611,2]
[338356932,1726551040258,-150.556,0.00019611,2]
[338356933,1726551040267,-600.195,0.00019611,2]
[338356934,1726551040277,-700.76082941,0.00019616,2]
[338356935,1726551040287,-7332.47559923,0.00019639,2]
[338356936,1726551040296,-160.0,0.0001964,3]
[338356937,1726551040306,-700.76082941,0.00019699,2]
[338356938,1726551040316,-160.0,0.0001974,4]
[338356939,1726551040326,-7292.41900405,0.000198,2]
[338356940,1726551040335,-700.76082941,0.00019808,2]
[338356941,1726551040345,-160.0,0.00019839,5]
[338356942,1726551040355,-902.806745,0.00019863,2]
[338356943,1726551040364,-1500.0,0.00019873,2]
[338356944,1726551040373,-1500.0,0.00019873,2]
[338356945,1726551040383,-250.0,0.0001988,2]
[338356946,1726551040393,-247.43647858,0.000199,2]
[338356947,1726551040403,-300.0,0.000199,8]
[338356948,1726551040413,-160.0,0.00019938,6]
[338356949,1726551040423,-500.0,0.00019969,2]
[338356950,1726551040432,-5000.0,0.00019985,2]
[338356951,1726551040442,-160.97639217,0.00019999,2]
[338356952,1726551040452,-1000.0,0.00019999,2]
[338356953,1726551040462,-34999.335001,0.0002,2]
[338356954,1726551040472,-10000.0,0.0002,2]
[338356955,1726551040481,-992.26,0.0002,5]
[338356956,1726551040491,-184.0,0.0002,2]
[338356957,1726551040501,-175.75823356,0.0002,2]
[338356958,1726551040510,-618.53756452,0.0002,2]
[338356959,1726551040520,-335799.19869294,0.0002,2]
[338356960,1726551040529,-360.703012,0.0002,2]
[338356961,1726551040538,-360.703012,0.0002,2]
[338356962,1726551040548,-151.0,0.0002,2]
[338356963,1726551040557,-151.0,0.0002,2]
[338356964,1726551040566,-1034.03,0.0002,2]
[338356965,1726551040575,-1017.677244,0.0002,2]
[338356966,1726551040584,-1017.677244,0.0002,2]
[338356967,1726551040594,-151.0,0.0002,2]
[338356968,1726551040604,-155.280629,0.0002,2]
[338356969,1726551040614,-2613.654598,0.0002,2]
[338356970,1726551040624,-309.120757,0.0002,2]
[338356971,1726551040635,-2613.654598,0.0002,2]
[338356972,1726551040646,-309.120757,0.0002,2]
[338356973,1726551040655,-151.0,0.0002,2]
[338356974,1726551040666,-151.0,0.0002,2]
[338356975,1726551040676,-151.0,0.0002,2]
[338356976,1726551040687,-5000.0,0.0002,2]
[338356977,1726551040697,-1000.0,0.0002003,2]
[338356978,1726551040707,-160.0,0.00020038,7]
[338356979,1726551040717,-605.424,0.00020055,2]
[338356980,1726551040727,-160.0,0.00020137,8]
[338356981,1726551040738,-1351.497645,0.0002014,2]
[338356982,1726551040748,-324.893398,0.00020187,2]
[338356983,1726551040762,-151.0,0.00020197,2]
[338356984,1726551040772,-160.0,0.00020236,9]
[338356985,1726551040783,-36055.58086149,0.000203,2]
[338356986,1726551040950,-500.0,0.000203,2]
[338356987,1726551041025,-3889.2,0.000203,2]
[338356988,1726551041048,-18765.70913851,0.000203,2]
[338356989,1726551041058,-1403.06595395,0.000203,2]
[338356990,1726551041309,-688.083,0.00019611,2]
[338356991,1726551041318,-71491.60520119,0.000203,2]
[338356994,1726551043407,-28322.10738867,0.000203,2]
[338356997,1726551043583,-3619.03145619,0.000203,2]
[338356998,1726551043593,-14888.2319454,0.000203,2]
[338357002,1726551046599,-500.0,0.00017534,2]
[338357003,1726551046608,-15.75313794,0.00017534,2]
[338357004,1726551046861,-431.98203826,0.00017534,2]
[338357005,1726551122948,199.05675554,0.00013699,2]
[338357006,1726551122969,113.70888931,0.00013699,2]
[338357007,1726551122991,1.68333315,0.00013699,2]
[338357008,1726551175687,219.21298692,0.0001401,2]
[338357015,1726551253893,884.67838784,0.00025,60]
[338357021,1726551437387,362.315,0.00025,60]
[338357023,1726551662354,306.979761,0.00013699,2]
[338357025,1726551710974,1002.0,0.00025999,120]
[338357132,1726551992833,-223.48500017,0.00014117,2]
[338357136,1726552054146,-55.92885083,0.00014117,2]
[338357137,1726552054174,-8218.648796,0.0001413,2]
[338357138,1726552054197,-121.16366612,0.00014163,2]
[338357143,1726552147119,-177.80233635,0.00014063,2]
[338357144,1726552147141,-300.0,0.00014163,2]
[338357145,1726552147163,-7657.51566565,0.00014164,2]
[338357147,1726552154095,-701.00094203,0.00014164,2]
[338357156,1726552165137,-16541.48339232,0.00014164,2]
[338357157,1726552165157,-177.80233635,0.00014483,2]
[338357158,1726552165179,-164.978716,0.00014584,2]
[338357159,1726552165201,-164.978716,0.00014634,2]
[338357160,1726552165223,-164.978716,0.00014685,2]
[338357161,1726552165246,-164.978716,0.00014736,2]
[338357162,1726552165268,-164.978716,0.00014786,2]
[338357163,1726552165290,-164.978716,0.00014837,2]
[338357164,1726552165312,-164.978716,0.00014888,2]
[338357165,1726552165333,-177.80233635,0.00014904,2]
[338357166,1726552165355,-164.978716,0.00014938,2]
[338357167,1726552165378,-164.978716,0.00014989,2]
[338357168,1726552165400,-164.978716,0.0001504,2]
[338357169,1726552165422,-164.978716,0.0001509,2]
[338357170,1726552165446,-164.978716,0.00015141,2]
[338357171,1726552165468,-164.978716,0.00015192,2]
[338357172,1726552165491,-164.978716,0.00015242,2]
[338357173,1726552165514,-38.49926143,0.00015293,2]
[338357175,1726552167159,-126.47945457,0.00015293,2]
[338357176,1726552167182,-138.42125661,0.00015324,2]
[338357178,1726552181375,2556.8,0.00026,120]
[338357180,1726552230159,299.884004,0.00013699,2]
[338357203,1726552232511,-39.38107974,0.00015324,2]
[338357204,1726552232520,-164.978716,0.00015344,2]
[338357205,1726552232530,-300.0,0.00015743,2]
[338357206,1726552232540,-169.29631872,0.00015743,2]
[338357207,1726552232554,-130.70368128,0.00015743,2]
[338357208,1726552232563,-168.57957278,0.00015744,2]
[338357209,1726552232573,-177.80233635,0.00015744,2]
[338357210,1726552232581,-1059.11796325,0.00015744,2]
[338357211,1726552232592,-1092.18472264,0.00015744,2]
[338357291,1726552238628,-2526.93933369,0.00015744,2]
[338357299,1726552238688,-254.63533274,0.00015744,2]
[338357304,1726552238731,-932.86014588,0.00015744,2]
[338357306,1726552238744,-816.60366765,0.00015744,2]
[338357308,1726552238753,-168.57957276,0.00015746,2]
[338357310,1726552238764,-168.57957276,0.00015747,2]
[338357312,1726552238775,-86.29325506,0.00015747,2]
[338357315,1726552238788,-1608.86302392,0.00015747,2]
[338357317,1726552238797,-151.16736949,0.00015782,2]
[338357319,1726552238807,-354.42547645,0.00015843,2]
[338357321,1726552238816,-500.0,0.00015843,2]
[338357323,1726552238826,-611.75679411,0.00015843,2]
[338357325,1726552238836,-500.0,0.00015843,2]
[338357327,1726552238846,-346.38704493,0.00015843,2]
[338357329,1726552238859,-265.36974918,0.00015843,2]
[338357332,1726552238870,-500.0,0.00015843,2]
[338357335,1726552238880,-611.75679411,0.00015843,2]
[338357338,1726552238889,-500.0,0.00015843,2]
[338357340,1726552238899,-611.75679411,0.00015843,2]
[338357343,1726552238909,-500.0,0.00015843,2]
[338357344,1726552238919,-611.75679411,0.00015843,2]
[338357345,1726552238928,-500.0,0.00015843,2]
[338357346,1726552238939,-611.75679411,0.00015843,2]
[338357347,1726552238949,-500.0,0.00015843,2]
[338357348,1726552238958,-611.75679411,0.00015843,2]
[338357349,1726552238968,-500.0,0.00015843,2]
[338357350,1726552238977,-500.0,0.00015843,2]
[338357351,1726552238987,-611.75679411,0.00015843,2]
[338357352,1726552238996,-500.0,0.00015843,2]
[338357353,1726552239006,-611.75679411,0.00015843,2]
[338357354,1726552239016,-611.75679411,0.00015843,2]
[338357355,1726552239025,-500.0,0.00015843,2]
[338357357,1726552239035,-611.75679411,0.00015843,2]
[338357358,1726552239045,-500.0,0.00015843,2]
[338357360,1726552239054,-611.75679411,0.00015843,2]
[338357362,1726552239064,-500.0,0.00015843,2]
[338357364,1726552239074,-611.75679411,0.00015843,2]
[338357366,1726552239084,-500.0,0.00015843,2]
[338357369,1726552239094,-611.75679411,0.00015843,2]
[338357371,1726552239104,-499.699865,0.00015843,2]
[338357373,1726552239113,-611.75679411,0.00015843,2]
[338357375,1726552239124,-611.75679411,0.00015843,2]
[338357377,1726552239134,-611.75679411,0.00015843,2]
[338357379,1726552239143,-611.75679411,0.00015843,2]
[338357381,1726552239153,-611.75679411,0.00015843,2]
[338357383,1726552239162,-611.75679411,0.00015843,2]
[338357385,1726552239172,-611.75679411,0.00015843,2]
[338357387,1726552239182,-611.75679411,0.00015843,2]
[338357389,1726552239191,-611.75679411,0.00015843,2]
[338357391,1726552239206,-611.75679411,0.00015843,2]
[338357394,1726552239216,-611.75679411,0.00015843,2]
[338357396,1726552239226,-611.75679411,0.00015843,2]
[338357398,1726552239236,-611.75679411,0.00015843,2]
[338357400,1726552239245,-611.75679411,0.00015843,2]
[338357402,1726552239255,-611.75679411,0.00015843,2]
[338357404,1726552239265,-611.75679411,0.00015843,2]
[338357406,1726552239274,-611.75679411,0.00015843,2]
[338357408,1726552239284,-611.75679411,0.00015843,2]
[338357410,1726552239294,-611.75679411,0.00015843,2]
[338357412,1726552239304,-611.75679411,0.00015843,2]
[338357414,1726552239314,-611.75679411,0.00015843,2]
[338357416,1726552239324,-611.75679411,0.00015843,2]
[338357418,1726552239334,-611.75679411,0.00015843,2]
[338357420,1726552239343,-611.75679411,0.00015843,2]
[338357421,1726552239353,-611.75679411,0.00015843,2]
[338357423,1726552239362,-75357.717681,0.00015845,2]
[338357425,1726552239373,-2128.42950243,0.00015845,2]
[338357427,1726552239383,-75357.717681,0.00015848,2]
[338357429,1726552239393,-2128.42950243,0.00015848,2]
[338357431,1726552239402,-1000.0,0.00015887,2]
[338357433,1726552239412,-1000.0,0.00015887,2]
[338357435,1726552239422,-1000.0,0.00015887,2]
[338357437,1726552239431,-1000.0,0.00015887,2]
[338357438,1726552239440,-1002.73351535,0.00015887,2]
[338357440,1726552239451,-500.0,0.000159,2]
[338357442,1726552239460,-500.47227061,0.000159,2]
[338357443,1726552239470,-500.0,0.000159,2]
[338357444,1726552239480,-358.93283187,0.000159,2]
[338357445,1726552239489,-500.82512629,0.000159,2]
[338357446,1726552239499,-500.0,0.000159,2]
[338357447,1726552239510,-500.0,0.000159,2]
[338357448,1726552239519,-456.52500384,0.000159,2]
[338357449,1726552239529,-500.0,0.000159,2]
[338357450,1726552239539,-500.0,0.000159,2]
[338357451,1726552239549,-500.0,0.000159,2]
[338357452,1726552239558,-161.02001181,0.00016467,2]
[338357453,1726552239567,-500.0,0.00016467,2]
[338357454,1726552239577,-500.0,0.00016467,2]
[338357455,1726552239586,-500.0,0.00016533,2]
[338357456,1726552239596,-1695.15627896,0.00016585,2]
[338357457,1726552239606,-420.0,0.00017217,2]
[338357458,1726552239615,-880.78574981,0.0001727,2]
[338357459,1726552239625,-1000.0,0.0001727,2]
[338357460,1726552239635,-715.41443216,0.0001727,2]
[338357461,1726552239645,-6682.34116585,0.00017273,2]
[338357462,1726552239654,-420.0,0.00017317,2]
[338357463,1726552239665,-6665.8869083,0.00017355,2]
[338357464,1726552239676,-500.0,0.00017373,2]
[338357465,1726552239687,-500.0,0.00017373,2]
[338357466,1726552239704,-500.0,0.00017373,2]
[338357467,1726552239714,-500.0,0.00017373,2]
[338357468,1726552239725,-488.82668183,0.00017373,2]
[338357469,1726552239735,-500.0,0.00017373,2]
[338357470,1726552239745,-500.0,0.00017373,2]
[338357471,1726552239755,-500.0,0.00017373,2]
[338357472,1726552239765,-500.0,0.00017373,2]
[338357473,1726552239775,-230.98972288,0.00017373,2]
[338357474,1726552239785,-500.0,0.00017373,2]
[338357475,1726552239795,-500.0,0.00017373,2]
[338357476,1726552239805,-500.0,0.00017373,2]
[338357477,1726552239818,-500.0,0.00017373,2]
[338357478,1726552239828,-500.0,0.00017373,2]
[338357479,1726552239838,-500.0,0.00017373,2]
[338357480,1726552239848,-500.0,0.00017373,2]
[338357481,1726552239858,-575.62717985,0.00017373,2]
[338357482,1726552239869,-553.27702592,0.00017373,2]
[338357483,1726552239878,-500.0,0.00017373,2]
[338357484,1726552239888,-500.0,0.00017373,2]
[338357485,1726552239898,-500.0,0.00017373,2]
[338357486,1726552239909,-493.87853897,0.00017373,2]
[338357487,1726552239918,-500.0,0.00017373,2]
[338357488,1726552239931,-500.0,0.00017373,2]
[338357489,1726552239941,-500.0,0.00017373,2]
[338357490,1726552239951,-500.0,0.00017373,2]
[338357491,1726552239961,-500.0,0.00017373,2]
[338357492,1726552239971,-500.0,0.00017373,2]
[338357493,1726552239981,-500.0,0.00017373,2]
[338357494,1726552239990,-500.0,0.00017373,2]
[338357495,1726552240001,-500.0,0.00017373,2]
[338357496,1726552240010,-500.0,0.00017373,2]
[338357497,1726552240020,-295.0,0.00017373,2]
[338357498,1726552240029,-500.0,0.00017373,2]
[338357500,1726552240040,-500.0,0.00017373,2]
[338357502,1726552240050,-500.0,0.00017373,2]
[338357503,1726552240059,-500.0,0.00017373,2]
[338357505,1726552240069,-500.0,0.00017373,2]
[338357507,1726552240078,-500.0,0.00017373,2]
[338357508,1726552240088,-500.0,0.00017373,2]
[338357509,1726552240098,-500.0,0.00017373,2]
[338357510,1726552240107,-500.0,0.00017373,2]
[338357512,1726552240117,-500.0,0.00017373,2]
[338357513,1726552240127,-500.0,0.00017373,2]
[338357514,1726552240137,-350.0,0.00017373,2]
[338357515,1726552240147,-75357.717681,0.00017374,2]
[338357516,1726552240156,-2128.42950243,0.00017374,2]
[338357517,1726552240166,-1695.15627896,0.00017424,2]
[338357518,1726552240176,-6665.8869083,0.00017599,2]
[338357519,1726552240186,-1000.0,0.00017837,2]
[338357520,1726552240196,-1000.0,0.00017837,2]
[338357522,1726552240205,-6665.8869083,0.00017856,2]
[338357524,1726552240215,-150.112236,0.000179,2]
[338357525,1726552240225,-75357.717681,0.00017979,2]
[338357527,1726552240234,-2128.42950243,0.00017979,2]
[338357528,1726552240244,-176.64202104,0.00018025,2]
[338357530,1726552240253,-6665.8869083,0.00018147,2]
[338357532,1726552240263,-1695.15627896,0.00018262,2]
[338357534,1726552240273,-150.112233,0.000183,2]
[338357535,1726552240283,-6665.8869083,0.00018529,2]
[338357536,1726552240293,-75357.717681,0.00018746,2]
[338357538,1726552240303,-2128.42950243,0.00018746,2]
[338357539,1726552240312,-150.112233,0.000188,2]
[338357540,1726552240322,-6682.34116585,0.00018802,2]
[338357541,1726552240331,-6665.8869083,0.0001882,2]
[338357542,1726552240342,-587.0,0.00018829,2]
[338357543,1726552240352,-6665.8869083,0.00018908,2]
[338357545,1726552240362,-2435.78616174,0.00018979,2]
[338357546,1726552240375,-2128.42950243,0.0001898,3]
[338357547,1726552240385,-61056.08033718,0.0001899,2]
[338357548,1726552240395,-587.0,0.00019049,2]
[338357549,1726552240405,-2128.42950243,0.00019069,3]
[338357550,1726552240415,-6385.28850729,0.0001908,3]
[338357551,1726552240425,-4256.85900486,0.0001909,3]
[338357552,1726552240435,-8513.71800972,0.0001909,3]
[338357553,1726552240445,-187510.90907287,0.000191,2]
[338357554,1726552240455,-3000.0,0.000191,2]
[338357555,1726552240465,-1695.15627896,0.000191,2]
[338357556,1726552240475,-3000.0,0.0001911,2]
[338357557,1726552240485,-3000.0,0.0001912,2]
[338357558,1726552240495,-3000.0,0.0001913,2]
[338357559,1726552240505,-151.0,0.0001913,2]
[338357560,1726552240515,-151.0,0.0001913,2]
[338357561,1726552240525,-772.526302,0.0001913,2]